fUSD/lending_fUSD_20240518
["ID","MTS","AMOUNT","RATE_DAILY","PERIOD"]
[327429116,1716072657154,-812.94,0.00027671,2]
[327429117,1716072657163,-500.0,0.00027671,2]
[327429118,1716072657172,-500.0,0.00027671,2]
[327429119,1716072657181,-500.0,0.00027671,2]
[327429120,1716072657191,-500.0,0.00027671,2]
[327429121,1716072657200,-151.0,0.00027671,7]
[327429122,1716072657208,-500.0,0.00027671,2]
[327429123,1716072657218,-500.0,0.00027671,2]
[327429124,1716072657227,-500.0,0.00027671,2]
[327429125,1716072657237,-520.2717648,0.00027671,2]
[327429126,1716072657246,-1640.62,0.00027671,2]
[327429127,1716072657255,-919.67,0.00027671,2]
[327429128,1716072657265,-994.59,0.00027671,2]
[327429129,1716072657274,-500.0,0.00027671,2]
[327429130,1716072657283,-508.72,0.00027671,2]
[327429131,1716072657292,-151.0,0.00027671,7]
[327429132,1716072657302,-1278.05,0.00027671,2]
[327429133,1716072657311,-500.0,0.00027671,2]
[327429134,1716072657320,-500.0,0.00027671,2]
[327429135,1716072657329,-500.0,0.00027671,2]
[327429136,1716072657339,-500.0,0.00027671,2]
[327429137,1716072657348,-500.0,0.00027671,2]
[327429138,1716072657357,-500.0,0.00027671,2]
[327429139,1716072657366,-538.29,0.00027671,2]
[327429140,1716072657375,-500.0,0.00027671,2]
[327429141,1716072657385,-500.0,0.00027671,2]
[327429142,1716072657394,-878.16,0.00027671,2]
[327429143,1716072657408,-500.0,0.00027671,2]
[327429144,1716072657417,-1193.14,0.00027671,2]
[327429145,1716072657426,-500.0,0.00027671,2]
[327429146,1716072657435,-500.0,0.00027671,2]
[327429147,1716072657445,-500.0,0.00027671,2]
[327429148,1716072657454,-522.56871935,0.00027671,2]
[327429149,1716072657463,-500.0,0.00027671,2]
[327429150,1716072657472,-511.86,0.00027671,2]
[327429151,1716072657481,-500.0,0.00027671,2]
[327429152,1716072657491,-500.0,0.00027671,2]
[327429153,1716072657500,-500.0,0.00027671,2]
[327429154,1716072657509,-629.56,0.00027671,2]
[327429155,1716072657518,-500.0,0.00027671,2]
[327429156,1716072657527,-500.0,0.00027671,2]
[327429157,1716072657536,-500.0,0.00027671,2]
[327429158,1716072657545,-500.0,0.00027671,2]
[327429159,1716072657554,-701.29,0.00027671,2]
[327429160,1716072657563,-500.0,0.00027671,2]
[327429161,1716072657572,-1465.44,0.00027671,2]
[327429162,1716072657580,-500.0,0.00027671,2]
[327429163,1716072657589,-151.0,0.00027671,7]
[327429164,1716072657598,-500.0,0.00027671,2]
[327429165,1716072657607,-737.76,0.00027671,2]
[327429166,1716072657616,-500.0,0.00027671,2]
[327429167,1716072657625,-500.0,0.00027671,2]
[327429168,1716072657634,-500.0,0.00027671,2]
[327429169,1716072657643,-545.55,0.00027671,2]
[327429170,1716072657653,-535.86,0.00027671,2]
[327429171,1716072657662,-664.25,0.00027671,2]
[327429172,1716072657671,-500.0,0.00027671,2]
[327429173,1716072657680,-315.74476591,0.00027671,2]
[327429174,1716072657689,-676.12,0.00027671,2]
[327429175,1716072657698,-500.0,0.00027671,2]
[327429176,1716072657707,-500.0,0.00027671,2]
[327429177,1716072657715,-1116.91,0.00027671,2]
[327429178,1716072657724,-542.02672116,0.00027671,2]
[327429179,1716072657734,-534.58411432,0.00027671,2]
[327429180,1716072657743,-1468.41,0.00027671,2]
[327429181,1716072657752,-500.0,0.00027671,2]
[327429182,1716072657761,-500.0,0.00027671,2]
[327429183,1716072657770,-500.0,0.00027671,2]
[327429184,1716072657780,-500.0,0.00027671,2]
[327429185,1716072657788,-500.0,0.00027671,2]
[327429186,1716072657797,-500.0,0.00027671,2]
[327429187,1716072657807,-500.0,0.00027671,2]
[327429188,1716072657816,-151.0,0.00027671,7]
[327429189,1716072657826,-1503.59,0.00027671,2]
[327429190,1716072657835,-1716.09,0.00027671,2]
[327429191,1716072657844,-2119.81,0.00027671,2]
[327429192,1716072657853,-608.62,0.00027671,2]
[327429193,1716072657862,-500.0,0.00027671,2]
[327429194,1716072657871,-151.0,0.00027671,7]
[327429195,1716072657881,-500.0,0.00027671,2]
[327429196,1716072657890,-585.6,0.00027671,2]
[327429197,1716072657900,-151.0,0.00027671,7]
[327429198,1716072657909,-1723.61,0.00027671,2]
[327429199,1716072657918,-500.0,0.00027671,2]
[327429200,1716072657928,-673.21,0.00027671,2]
[327429201,1716072657937,-1064.38,0.00027671,2]
[327429202,1716072657947,-500.0,0.00027671,2]
[327429203,1716072657956,-500.0,0.00027671,2]
[327429204,1716072657965,-1075.81,0.00027671,2]
[327429205,1716072657975,-500.0,0.00027671,2]
[327429206,1716072657984,-712.14,0.00027671,2]
[327429207,1716072657994,-587.92,0.00027671,2]
[327429208,1716072658003,-1114.27,0.00027671,2]
[327429209,1716072658012,-1220.64,0.00027671,2]
[327429210,1716072658022,-500.0,0.00027671,2]
[327429211,1716072658031,-500.0,0.00027671,2]
[327429212,1716072658041,-225.368504,0.00027671,7]
[327429213,1716072658050,-722.05,0.00027671,2]
[327429214,1716072658059,-500.0,0.00027671,2]
[327429215,1716072658071,-151.0,0.00027671,7]
[327429216,1716072658079,-969.15,0.00027671,2]
[327429217,1716072658089,-2267.31,0.00027671,2]
[327429218,1716072658099,-1458.35,0.00027671,2]
[327429219,1716072658107,-225.368504,0.00027671,7]
[327429220,1716072658246,-632.07,0.00027671,2]
[327429221,1716072658255,-500.0,0.00027671,2]
[327429222,1716072658265,-1012.54,0.00027671,2]
[327429223,1716072658274,-1866.92,0.00027671,2]
[327429224,1716072658283,-611.06,0.00027671,2]
[327429225,1716072658292,-500.0,0.00027671,2]
[327429226,1716072658302,-1196.04,0.00027671,2]
[327429227,1716072658311,-500.0,0.00027671,2]
[327429228,1716072658320,-500.0,0.00027671,2]
[327429229,1716072658329,-1018.2,0.00027671,2]
[327429230,1716072658339,-500.0,0.00027671,2]
[327429231,1716072658348,-220.23321945,0.00027671,2]
[327429232,1716072658357,-500.0,0.00027671,2]
[327429233,1716072658367,-500.0,0.00027671,2]
[327429234,1716072658376,-1534.26,0.00027671,2]
[327429235,1716072658385,-500.0,0.00027671,2]
[327429236,1716072658394,-1644.74,0.00027671,2]
[327429237,1716072658413,-500.0,0.00027671,2]
[327429238,1716072658423,-500.0,0.00027671,2]
[327429239,1716072658432,-500.0,0.00027671,2]
[327429240,1716072658441,-151.0,0.00027671,7]
[327429241,1716072658454,-1425.36,0.00027671,2]
[327429242,1716072658463,-221.10003,0.00027671,7]
[327429243,1716072658472,-542.61060512,0.00027671,2]
[327429244,1716072658481,-500.0,0.00027671,2]
[327429245,1716072658490,-500.0,0.00027671,2]
[327429246,1716072658500,-1458.37,0.00027671,2]
[327429247,1716072658509,-500.0,0.00027671,2]
[327429248,1716072658519,-452.78,0.00027671,2]
[327429249,1716072658528,-175.735326,0.00027671,7]
[327429250,1716072658538,-500.0,0.00027671,2]
[327429251,1716072658547,-2166.18,0.00027671,2]
[327429252,1716072658558,-1570.99,0.00027671,2]
[327429253,1716072658573,-500.0,0.00027671,2]
[327429254,1716072658589,-539.79925604,0.00027671,2]
[327429255,1716072658599,-175.735326,0.00027671,7]
[327429256,1716072658608,-500.0,0.00027671,2]
[327429257,1716072658618,-1462.35,0.00027671,2]
[327429258,1716072658628,-500.0,0.00027671,2]
[327429259,1716072658637,-500.0,0.00027671,2]
[327429260,1716072658646,-1200.37,0.00027671,2]
[327429261,1716072658655,-151.0,0.00027671,7]
[327429262,1716072658665,-500.0,0.00027671,2]
[327429263,1716072658674,-1482.14,0.00027671,2]
[327429264,1716072658683,-285.005186,0.00027671,7]
[327429265,1716072658693,-500.0,0.00027671,2]
[327429266,1716072658702,-500.0,0.00027671,2]
[327429267,1716072658712,-589.95,0.00027671,2]
[327429268,1716072658721,-500.0,0.00027671,2]
[327429269,1716072658730,-1181.38,0.00027671,2]
[327429270,1716072658741,-500.0,0.00027671,2]
[327429271,1716072658750,-526.31813134,0.00027671,2]
[327429272,1716072658760,-500.0,0.00027671,2]
[327429273,1716072658769,-500.0,0.00027671,2]
[327429274,1716072658779,-1203.86,0.00027671,2]
[327429275,1716072658788,-500.0,0.00027671,2]
[327429276,1716072658797,-1171.23,0.00027671,2]
[327429277,1716072658807,-846.87,0.00027671,2]
[327429278,1716072658817,-500.0,0.00027671,2]
[327429279,1716072658827,-500.0,0.00027671,2]
[327429280,1716072658836,-500.0,0.00027671,2]
[327429281,1716072658845,-500.0,0.00027671,2]
[327429282,1716072658854,-500.0,0.00027671,2]
[327429283,1716072658863,-1159.4,0.00027671,2]
[327429284,1716072658872,-542.76,0.00027671,2]
[327429285,1716072658882,-500.0,0.00027671,2]
[327429286,1716072658891,-654.46,0.00027671,2]
[327429287,1716072658900,-500.0,0.00027671,2]
[327429288,1716072658909,-500.0,0.00027671,2]
[327429289,1716072658918,-500.0,0.00027671,2]
[327429290,1716072658927,-500.0,0.00027671,2]
[327429291,1716072658937,-1243.73,0.00027671,2]
[327429292,1716072658946,-2427.59,0.00027671,2]
[327429293,1716072658955,-500.0,0.00027671,2]
[327429294,1716072658965,-381.7,0.00027671,2]
[327429295,1716072658974,-500.0,0.00027671,2]
[327429296,1716072658983,-500.0,0.00027671,2]
[327429297,1716072658992,-239.67017,0.00027671,7]
[327429298,1716072659001,-500.0,0.00027671,2]
[327429299,1716072659011,-500.0,0.00027671,2]
[327429300,1716072659020,-239.67017,0.00027671,7]
[327429301,1716072659030,-500.0,0.00027671,2]
[327429302,1716072659039,-500.0,0.00027671,2]
[327429303,1716072659048,-1584.94,0.00027671,2]
[327429304,1716072659058,-500.0,0.00027671,2]
[327429305,1716072659070,-500.0,0.00027671,2]
[327429306,1716072659079,-1265.64,0.00027671,2]
[327429307,1716072659089,-500.0,0.00027671,2]
[327429308,1716072659098,-500.0,0.00027671,2]
[327429309,1716072659108,-500.0,0.00027671,2]
[327429310,1716072659117,-500.0,0.00027671,2]
[327429311,1716072659126,-502.53617852,0.00027671,2]
[327429312,1716072659136,-151.0,0.00027671,7]
[327429313,1716072659146,-500.0,0.00027671,2]
[327429314,1716072659155,-500.0,0.00027671,2]
[327429315,1716072659165,-1233.86,0.00027671,2]
[327429316,1716072659175,-500.0,0.00027671,2]
[327429317,1716072659184,-500.0,0.00027671,2]
[327429318,1716072659194,-151.0,0.00027671,7]
[327429319,1716072659203,-500.0,0.00027671,2]
[327429320,1716072659214,-500.0,0.00027671,2]
[327429321,1716072659223,-151.0,0.00027671,7]
[327429322,1716072659232,-500.0,0.00027671,2]
[327429323,1716072659242,-1395.57,0.00027671,2]
[327429324,1716072659251,-500.0,0.00027671,2]
[327429325,1716072659260,-1132.34,0.00027671,2]
[327429326,1716072659270,-500.0,0.00027671,2]
[327429327,1716072659279,-500.0,0.00027671,2]
[327429328,1716072659288,-151.0,0.00027671,7]
[327429329,1716072659297,-500.0,0.00027671,2]
[327429330,1716072659306,-151.0,0.00027671,7]
[327429331,1716072659317,-500.0,0.00027671,2]
[327429332,1716072659325,-500.0,0.00027671,2]
[327429333,1716072659335,-1430.09,0.00027671,2]
[327429334,1716072659344,-500.0,0.00027671,2]
[327429335,1716072659352,-500.0,0.00027671,2]
[327429336,1716072659362,-1055.87,0.00027671,2]
[327429337,1716072659371,-683.06,0.00027671,2]
[327429338,1716072659382,-500.0,0.00027671,2]
[327429339,1716072659391,-530.12474351,0.00027671,2]
[327429340,1716072659406,-151.0,0.00027671,7]
[327429341,1716072659416,-500.0,0.00027671,2]
[327429342,1716072659426,-572.39,0.00027671,2]
[327429343,1716072659436,-1506.92,0.00027671,2]
[327429344,1716072659445,-323.703741,0.00027671,7]
[327429345,1716072659454,-500.0,0.00027671,2]
[327429346,1716072659463,-151.0,0.00027671,7]
[327429347,1716072659472,-505.95,0.00027671,2]
[327429348,1716072659481,-323.703741,0.00027671,7]
[327429349,1716072659490,-151.0,0.00027671,7]
[327429350,1716072659500,-573.67,0.00027671,2]
[327429351,1716072659509,-1133.79,0.00027671,2]
[327429352,1716072659518,-500.0,0.00027671,2]
[327429353,1716072659528,-282.88,0.00027671,2]
[327429354,1716072659537,-151.0,0.00027671,7]
[327429355,1716072659546,-1092.05,0.00027671,2]
[327429356,1716072659555,-500.0,0.00027671,2]
[327429357,1716072659566,-516.22,0.00027671,2]
[327429358,1716072659575,-151.0,0.00027671,7]
[327429359,1716072659584,-500.0,0.00027671,2]
[327429360,1716072659593,-274.71217648,0.00027671,2]
[327429361,1716072659602,-449.671502,0.00027671,7]
[327429362,1716072659611,-151.0,0.00027671,7]
[327429363,1716072659620,-151.0,0.00027671,7]
[327429364,1716072659629,-500.0,0.00027671,2]
[327429365,1716072659638,-500.0,0.00027671,2]
[327429366,1716072659648,-500.0,0.00027671,2]
[327429367,1716072659657,-151.0,0.00027671,7]
[327429368,1716072659666,-665.38,0.00027671,2]
[327429369,1716072659675,-449.671502,0.00027671,7]
[327429370,1716072659684,-599.36228549,0.00027671,2]
[327429371,1716072659693,-522.93,0.00027671,2]
[327429372,1716072659702,-253.830931,0.00027671,7]
[327429373,1716072659711,-151.0,0.00027671,7]
[327429374,1716072659720,-500.0,0.00027671,2]
[327429375,1716072659730,-513.55,0.00027671,2]
[327429376,1716072659739,-500.0,0.00027671,2]
[327429377,1716072659747,-500.0,0.00027671,2]
[327429378,1716072659756,-500.0,0.00027671,2]
[327429379,1716072659765,-500.0,0.00027671,2]
[327429380,1716072659774,-500.0,0.00027671,2]
[327429381,1716072659783,-612.67,0.00027671,2]
[327429382,1716072659792,-500.0,0.00027671,2]
[327429383,1716072659801,-1047.59,0.00027671,2]
[327429384,1716072659810,-797.42,0.00027671,2]
[327429385,1716072659820,-553.93,0.00027671,2]
[327429386,1716072659829,-655.38,0.00027671,2]
[327429387,1716072659838,-790.53548,0.00027671,7]
[327429388,1716072659847,-1816.17,0.00027671,2]
[327429389,1716072659856,-500.0,0.00027671,2]
[327429390,1716072659866,-790.53548,0.00027671,7]
[327429391,1716072659875,-1274.2,0.00027671,2]
[327429392,1716072659884,-151.0,0.00027671,7]
[327429393,1716072659894,-151.0,0.00027671,7]
[327429394,1716072659902,-1013.77,0.00027671,2]
[327429395,1716072659911,-651.18,0.00027671,2]
[327429396,1716072659920,-500.0,0.00027671,2]
[327429397,1716072659929,-500.0,0.00027671,2]
[327429398,1716072659938,-192.74349,0.00027671,7]
[327429399,1716072659947,-567.65,0.00027671,2]
[327429400,1716072659956,-507.59192491,0.00027671,2]
[327429401,1716072659966,-1049.26,0.00027671,2]
[327429402,1716072659976,-500.0,0.00027671,2]
[327429403,1716072659985,-500.0,0.00027671,2]
[327429404,1716072659994,-151.0,0.00027671,7]
[327429405,1716072660005,-151.0,0.00027671,7]
[327429406,1716072660014,-318.462247,0.00027671,7]
[327429407,1716072660023,-500.0,0.00027671,2]
[327429408,1716072660033,-500.0,0.00027671,2]
[327429409,1716072660041,-151.0,0.00027671,7]
[327429410,1716072660050,-591.93,0.00027671,2]
[327429411,1716072660059,-318.462247,0.00027671,7]
[327429412,1716072660069,-500.0,0.00027671,2]
[327429413,1716072660078,-500.0,0.00027671,2]
[327429414,1716072660087,-500.0,0.00027671,2]
[327429415,1716072660096,-1008.71,0.00027671,2]
[327429416,1716072660105,-500.0,0.00027671,2]
[327429417,1716072660114,-500.0,0.00027671,2]
[327429418,1716072660241,-500.0,0.00027671,2]
[327429419,1716072660251,-500.0,0.00027671,2]
[327429420,1716072660260,-500.0,0.00027671,2]
[327429421,1716072660269,-500.0,0.00027671,2]
[327429422,1716072660278,-438.07339024,0.00027671,2]
[327429423,1716072660288,-500.0,0.00027671,2]
[327429424,1716072660297,-710.61,0.00027671,2]
[327429425,1716072660307,-500.0,0.00027671,2]
[327429426,1716072660317,-500.0,0.00027671,2]
[327429427,1716072660327,-878.79,0.00027671,2]
[327429428,1716072660336,-500.0,0.00027671,2]
[327429429,1716072660345,-194.22,0.00027671,2]
[327429430,1716072660355,-604.13,0.00027671,2]
[327429431,1716072660364,-985.63,0.00027671,2]
[327429432,1716072660373,-153.85,0.00027671,2]
[327429433,1716072660382,-537.31,0.00027671,2]
[327429434,1716072660391,-619.31,0.00027671,2]
[327429435,1716072660404,-500.0,0.00027671,2]
[327429436,1716072660413,-500.0,0.00027671,2]
[327429437,1716072660422,-1356.52,0.00027671,2]
[327429438,1716072660431,-500.0,0.00027671,2]
[327429439,1716072660440,-500.0,0.00027671,2]
[327429440,1716072660450,-500.0,0.00027671,2]
[327429441,1716072660459,-500.0,0.00027671,2]
[327429442,1716072660468,-2016.27,0.00027671,2]
[327429443,1716072660479,-612.5,0.00027671,2]
[327429444,1716072660488,-528.03,0.00027671,2]
[327429445,1716072660497,-500.0,0.00027671,2]
[327429446,1716072660506,-500.0,0.00027671,2]
[327429447,1716072660515,-996.54,0.00027671,2]
[327429448,1716072660524,-500.0,0.00027671,2]
[327429449,1716072660533,-500.0,0.00027671,2]
[327429450,1716072660543,-500.0,0.00027671,2]
[327429451,1716072660552,-519.88,0.00027671,2]
[327429452,1716072660561,-500.0,0.00027671,2]
[327429453,1716072660570,-553.54,0.00027671,2]
[327429454,1716072660579,-151.0,0.00027671,7]
[327429455,1716072660588,-151.0,0.00027671,7]
[327429456,1716072660597,-299.17,0.00027671,2]
[327429457,1716072660606,-332.48894,0.00027671,7]
[327429458,1716072660615,-332.48894,0.00027671,7]
[327429459,1716072660624,-1102.51,0.00027671,2]
[327429460,1716072660633,-500.0,0.00027671,2]
[327429461,1716072660642,-500.0,0.00027671,2]
[327429462,1716072660651,-151.0,0.00027671,7]
[327429463,1716072660660,-192.353929,0.00027671,7]
[327429464,1716072660669,-500.0,0.00027671,2]
[327429465,1716072660678,-332.48894,0.00027671,7]
[327429466,1716072660687,-332.48894,0.00027671,7]
[327429467,1716072660696,-500.0,0.00027671,2]
[327429468,1716072660705,-500.0,0.00027671,2]
[327429469,1716072660714,-500.0,0.00027671,2]
[327429470,1716072660724,-500.0,0.00027671,2]
[327429471,1716072660734,-940.06,0.00027671,2]
[327429472,1716072660743,-500.0,0.00027671,2]
[327429473,1716072660753,-500.0,0.00027671,2]
[327429474,1716072660762,-500.0,0.00027671,2]
[327429475,1716072660771,-500.0,0.00027671,2]
[327429476,1716072660780,-500.0,0.00027671,2]
[327429477,1716072660789,-500.0,0.00027671,2]
[327429478,1716072660798,-500.0,0.00027671,2]
[327429479,1716072660807,-500.0,0.00027671,2]
[327429480,1716072660816,-500.0,0.00027671,2]
[327429481,1716072660825,-517.32,0.00027671,2]
[327429482,1716072660834,-500.0,0.00027671,2]
[327429483,1716072660843,-500.0,0.00027671,2]
[327429484,1716072660852,-401.176148,0.00027671,7]
[327429485,1716072660861,-740.68,0.00027671,2]
[327429486,1716072660870,-509.85,0.00027671,2]
[327429487,1716072660879,-401.176148,0.00027671,7]
[327429488,1716072660888,-500.0,0.00027671,2]
[327429489,1716072660897,-394.370414,0.00027671,7]
[327429490,1716072660907,-394.370414,0.00027671,7]
[327429491,1716072660916,-500.0,0.00027671,2]
[327429492,1716072660925,-151.0,0.00027671,7]
[327429493,1716072660935,-401.176148,0.00027671,7]
[327429494,1716072660944,-151.0,0.00027671,7]
[327429495,1716072660953,-394.370414,0.00027671,7]
[327429496,1716072660962,-401.176148,0.00027671,7]
[327429497,1716072660971,-394.370414,0.00027671,7]
[327429498,1716072660980,-500.0,0.00027671,2]
[327429499,1716072660989,-500.0,0.00027671,2]
[327429500,1716072660998,-660.73,0.00027671,2]
[327429501,1716072661007,-500.0,0.00027671,2]
[327429502,1716072661017,-500.0,0.00027671,2]
[327429503,1716072661026,-595.48,0.00027671,2]
[327429504,1716072661035,-500.0,0.00027671,2]
[327429505,1716072661044,-500.0,0.00027671,2]
[327429506,1716072661053,-500.0,0.00027671,2]
[327429507,1716072661062,-500.0,0.00027671,2]
[327429508,1716072661072,-500.0,0.00027671,2]
[327429509,1716072661081,-1113.91,0.00027671,2]
[327429510,1716072661090,-428.007828,0.00027671,7]
[327429511,1716072661099,-428.007828,0.00027671,7]
[327429512,1716072661108,-500.0,0.00027671,2]
[327429513,1716072661117,-500.0,0.00027671,2]
[327429514,1716072661126,-500.0,0.00027671,2]
[327429515,1716072661135,-1942.1,0.00027671,2]
[327429516,1716072661146,-177.827012,0.00027671,7]
[327429517,1716072661155,-500.0,0.00027671,2]
[327429518,1716072661164,-177.827012,0.00027671,7]
[327429519,1716072661173,-428.007828,0.00027671,7]
[327429520,1716072661182,-428.007828,0.00027671,7]
[327429521,1716072661191,-1482.72,0.00027671,2]
[327429522,1716072661200,-500.0,0.00027671,2]
[327429523,1716072661210,-1155.06,0.00027671,2]
[327429524,1716072661219,-500.0,0.00027671,2]
[327429525,1716072661228,-726.7,0.00027671,2]
[327429526,1716072661238,-177.827012,0.00027671,7]
[327429527,1716072661247,-177.827012,0.00027671,7]
[327429528,1716072661257,-500.0,0.00027671,2]
[327429529,1716072661266,-500.0,0.00027671,2]
[327429530,1716072661275,-500.0,0.00027671,2]
[327429531,1716072661285,-500.0,0.00027671,2]
[327429532,1716072661294,-532.61,0.00027671,2]
[327429533,1716072661303,-151.0,0.00027671,7]
[327429534,1716072661313,-847.09,0.00027671,2]
[327429535,1716072661326,-151.0,0.00027671,7]
[327429536,1716072661335,-964.76,0.00027671,2]
[327429537,1716072661344,-500.0,0.00027671,2]
[327429538,1716072661353,-500.0,0.00027671,2]
[327429539,1716072661362,-500.0,0.00027671,2]
[327429540,1716072661371,-1203.05,0.00027671,2]
[327429541,1716072661380,-500.0,0.00027671,2]
[327429542,1716072661390,-2231.29,0.00027671,2]
[327429543,1716072661400,-500.0,0.00027671,2]
[327429544,1716072661411,-500.0,0.00027671,2]
[327429545,1716072661420,-500.0,0.00027671,2]
[327429546,1716072661429,-827.71,0.00027671,2]
[327429547,1716072661439,-842.65939,0.00027671,7]
[327429548,1716072661449,-842.65939,0.00027671,7]
[327429549,1716072661458,-500.0,0.00027671,2]
[327429550,1716072661468,-842.65939,0.00027671,7]
[327429551,1716072661477,-697.91,0.00027671,2]
[327429552,1716072661486,-842.65939,0.00027671,7]
[327429553,1716072661496,-1278.41,0.00027671,2]
[327429554,1716072661505,-816.1,0.00027671,2]
[327429555,1716072661515,-500.0,0.00027671,2]
[327429556,1716072661524,-2447.17,0.00027671,2]
[327429557,1716072661533,-505.57978779,0.00027671,2]
[327429558,1716072661542,-32915.72,0.00027671,2]
[327429559,1716072661552,-953.63,0.00027671,2]
[327429560,1716072661562,-865.72,0.00027671,2]
[327429561,1716072661573,-682.57,0.00027671,2]
[327429562,1716072661582,-529.16,0.00027671,2]
[327429563,1716072661591,-1750.4,0.00027671,2]
[327429564,1716072661602,-500.0,0.00027671,2]
[327429565,1716072661611,-2057.73,0.00027671,2]
[327429566,1716072661621,-2572.88,0.00027671,2]
[327429567,1716072661630,-500.0,0.00027671,2]
[327429568,1716072661639,-3119.96,0.00027671,2]
[327429569,1716072661648,-922.14,0.00027671,2]
[327429570,1716072661657,-500.0,0.00027671,2]
[327429571,1716072661667,-500.0,0.00027671,2]
[327429572,1716072661677,-500.0,0.00027671,2]
[327429573,1716072661686,-213.04033501,0.00027671,2]
[327429574,1716072661695,-2353.86,0.00027671,2]
[327429575,1716072661705,-500.0,0.00027671,2]
[327429576,1716072661714,-531.36,0.00027671,2]
[327429577,1716072661723,-500.0,0.00027671,2]
[327429578,1716072661733,-858.26,0.00027671,2]
[327429579,1716072661742,-150.0,0.00027671,2]
[327429580,1716072661752,-500.0,0.00027671,2]
[327429581,1716072661761,-500.0,0.00027671,2]
[327429582,1716072661770,-151.0,0.00027671,7]
[327429583,1716072661779,-508.72526758,0.00027671,2]
[327429584,1716072661788,-151.0,0.00027671,7]
[327429585,1716072661797,-151.0,0.00027671,7]
[327429586,1716072661806,-151.0,0.00027671,7]
[327429587,1716072661815,-1058.12,0.00027671,2]
[327429588,1716072661825,-500.0,0.00027671,2]
[327429589,1716072661834,-638.4,0.00027671,2]
[327429590,1716072661843,-500.0,0.00027671,2]
[327429591,1716072661851,-500.0,0.00027671,2]
[327429592,1716072661861,-1228.94,0.00027671,2]
[327429593,1716072661870,-500.0,0.00027671,2]
[327429594,1716072661879,-872.12,0.00027671,2]
[327429595,1716072661888,-610.79,0.00027671,2]
[327429596,1716072661897,-500.0,0.00027671,2]
[327429597,1716072661906,-650.02,0.00027671,2]
[327429598,1716072661915,-500.0,0.00027671,2]
[327429599,1716072661923,-500.0,0.00027671,2]
[327429600,1716072662046,-151.0,0.00027671,7]
[327429601,1716072662055,-151.0,0.00027671,7]
[327429602,1716072662064,-911.87,0.00027671,2]
[327429603,1716072662076,-722.52,0.00027671,2]
[327429604,1716072662085,-198.195128,0.00027671,7]
[327429605,1716072662094,-500.0,0.00027671,2]
[327429606,1716072662103,-612.69,0.00027671,2]
[327429607,1716072662112,-628.71,0.00027671,2]
[327429608,1716072662122,-9177.76,0.00027671,2]
[327429609,1716072662131,-500.0,0.00027671,2]
[327429610,1716072662141,-500.0,0.00027671,2]
[327429611,1716072662150,-500.0,0.00027671,2]
[327429612,1716072662160,-2257.41,0.00027671,2]
[327429613,1716072662169,-500.0,0.00027671,2]
[327429614,1716072662178,-602.34,0.00027671,2]
[327429615,1716072662187,-944.42,0.00027671,2]